[Event "FIDE WCCC Girls-10 2024"]
[Site "Montesilvano"]
[Date "2024.11.18"]
[Round "4.7"]
[White "Tykalova, Barbora"]
[Black "Artemenko, Isabella"]
[Result "0-1"]
[Annotator "NA RC"]
[ECO "C55"]
[WhiteElo "1596"]
[BlackElo "1637"]
[PlyCount "112"]
[EventDate "2024.11.18"]
[EventType "swiss"]
[EventCountry "ITA"]
[SourceTitle "playchess.com"]
[Source "ChessBase"]
[SourceQuality "1"]
[TimeControl "5400+30"]

1. e4 {[%emt 0:00:02]} e5 {[%emt 0:00:08]} 2. Nf3 {[%emt 0:00:13]} Nc6 {[%emt 0:00:04]} 3. Bc4 {[%emt 0:00:48]} Nf6 {[%emt 0:00:16]} 4. d3 {[%emt 0:00:31]} Be7 {[%emt 0:00:11]} 5. Nc3 {[%emt 0:00:45]} O-O {[%emt 0:00:09]} 6. O-O {[%emt 0:01:30]} d6 {[%emt 0:00:08]} 7. h3 {[%emt 0:01:17]} Na5 {[%emt 0:00:18]} 8. Bb3 {[%emt 0:01:29]} Nxb3 {[%emt 0:00:40]} 9. axb3 {[%emt 0:01:27]} Bd7 {[%emt 0:01:16]} 10. Be3 {[%emt 0:01:37]} a6 {[%emt 0:01:44]} 11. Nd2 {[%emt 0:04:11]} Bc6 {[%emt 0:10:38]} 12. f4 {[%emt 0:02:04]} exf4 {[%emt 0:01:27]} 13. Bxf4 {[%emt 0:01:11]} d5 {[%emt 0:06:12]} 14. e5 {[%emt 0:02:30]} Bc5+ {[%emt 0:00:20]} 15. Kh1 {[%emt 0:02:34]} Nd7 {[%emt 0:00:53]} 16. Qg4 {[%emt 0:03:28]} Qe7 {[%emt 0:29:31]} 17. Bg5 {[%emt 0:14:03]} Qe6 {[%emt 0:04:39]} 18. Qg3 {[%emt 0:01:07]} h6 {[%emt 0:05:08]} 19. Bf4 {[%emt 0:01:31]} Rfe8 {[%emt 0:02:52]} 20. Rae1 {[%emt 0:02:26]} Nf8 {[%emt 0:01:50]} 21. Nf3 {[%emt 0:08:11]} Rad8 {[%emt 0:05:17]} 22. d4 {[%emt 0:00:43]} Bb4 {[%emt 0:00:47]} 23. Nh2 {[%emt 0:05:03]} Qg6 {[%emt 0:03:46]} 24. Qf2 {[%emt 0:03:02]} Ne6 {[%emt 0:01:21]} 25. Be3 {[%emt 0:00:44]} Rd7 {[%emt 0:01:59]} 26. Ng4 {[%emt 0:03:30]} Ng5 {[%emt 0:08:11]} 27. Qe2 {[%emt 0:04:28]} Bxc3 {[%emt 0:02:12]} 28. bxc3 {[%emt 0:00:16]} Ne4 {[%emt 0:00:13]} 29. Qf3 {[%emt 0:01:11]} h5 {[%emt 0:00:48]} 30. e6 {[%emt 0:01:34]} hxg4 {[%emt 0:01:02]} 31. exd7 {[%emt 0:00:27]} gxf3 {[%emt 0:00:07]} 32. dxe8=Q+ {[%emt 0:00:44]} Bxe8 {[%emt 0:00:01]} 33. Rxf3 {[%emt 0:03:15]} Kf8 {[%emt 0:01:39]} 34. Bf4 {[%emt 0:02:18]} c6 {[%emt 0:02:50]} 35. Kh2 {[%emt 0:06:10]} Bd7 {[%emt 0:00:45]} 36. c4 {[%emt 0:02:24]} Be6 {[%emt 0:01:21]} 37. cxd5 {[%emt 0:02:24]} cxd5 {[%emt 0:01:14]} 38. Rfe3 {[%emt 0:03:47]} Qf6 {[%emt 0:00:16]} 39. Be5 {[%emt 0:01:56]} Qg5 {[%emt 0:01:54]} 40. Rxe4 {[%emt 0:01:57]} dxe4 {[%emt 0:00:11]} 41. Rxe4 {[%emt 0:00:11]} Qd2 {[%emt 0:00:13]} 42. c4 {[%emt 0:01:00]} Qd3 {[%emt 0:00:13]} 43. Rh4 {[%emt 0:00:36]} f6 {[%emt 0:00:53]} 44. d5 {[%emt 0:01:49]} fxe5 {[%emt 0:00:16]} 45. dxe6 {[%emt 0:00:06]} Ke7 {[%emt 0:00:20]} 46. Rg4 {[%emt 0:01:02]} Qh7 {[%emt 0:00:24]} 47. c5 {[%emt 0:00:43]} Kxe6 {[%emt 0:00:25]} 48. Rb4 {[%emt 0:00:07]} g6 {[%emt 0:00:05]} 49. Rb6+ {[%emt 0:00:53]} Kf5 {[%emt 0:00:12]} 50. c6 {[%emt 0:00:17]} bxc6 {[%emt 0:00:08]} 51. Rxc6 {[%emt 0:00:04]} Qb7 {[%emt 0:00:04]} 52. Rc3 {[%emt 0:00:07]} Qb4 {[%emt 0:00:04]} 53. Rf3+ {[%emt 0:00:24]} Ke6 {[%emt 0:00:22]} 54. g3 {[%emt 0:01:00]} Qd2+ {[%emt 0:00:40]} 55. Kg1 {[%emt 0:00:12]} e4 {[%emt 0:00:20]} 56. Rf1 {[%emt 0:00:55]} e3 {[%emt 0:00:07]} 0-1

[Event "FIDE WCCC Girls-10 2024"]
[Site "Montesilvano"]
[Date "2024.11.18"]
[Round "4.8"]
[White "Jaksa, Ema"]
[Black "Norkulova, Malika"]
[Result "1-0"]
[Annotator "NA RC"]
[ECO "B23"]
[WhiteElo "1635"]
[BlackElo "1480"]
[PlyCount "119"]
[EventDate "2024.11.18"]
[EventType "swiss"]
[EventCountry "ITA"]
[SourceTitle "playchess.com"]
[Source "ChessBase"]
[SourceQuality "1"]
[TimeControl "5400+30"]

1. e4 {[%emt 0:00:07]} c5 {[%emt 0:00:06]} 2. Nc3 {[%emt 0:00:43]} a6 {[%emt 0:02:38]} 3. g3 {[%emt 1:31:10]} b5 {[%emt 0:00:30]} 4. Bg2 {[%emt 0:00:00]} Bb7 {[%emt 0:00:27]} 5. Nge2 {[%emt 0:00:00]} e6 {[%emt 0:00:36]} 6. O-O {[%emt 0:00:00]} Nf6 {[%emt 0:01:58]} 7. f4 {[%emt 0:00:00]} b4 {[%emt 0:01:16]} 8. e5 {[%emt 0:00:00]} Bxg2 {[%emt 0:02:34]} 9. Kxg2 {[%emt 0:00:00]} bxc3 {[%emt 0:00:56]} 10. exf6 {[%emt 0:00:00]} Qxf6 {[%emt 0:01:42]} 11. Nxc3 {[%emt 0:00:00]} h5 {[%emt 0:03:10]} 12. f5 {[%emt 0:00:00]} Qe7 {[%emt 0:05:45]} 13. f6 {[%emt 0:00:00]} Qd6 {[%emt 0:01:49]} 14. Qf3 {[%emt 0:00:00]} Qc6 {[%emt 0:00:09]} 15. Ne4 {[%emt 0:00:00]} g6 {[%emt 0:01:22]} 16. h4 {[%emt 0:00:00]} Ra7 {[%emt 0:01:31]} 17. d3 {[%emt 0:00:00]} d6 {[%emt 0:03:35]} 18. Bf4 {[%emt 0:00:00]} Rb7 {[%emt 0:03:08]} 19. b3 {[%emt 0:00:00]} d5 {[%emt 0:04:35]} 20. Ng5 {[%emt 0:00:00]} Nd7 {[%emt 0:00:27]} 21. c4 {[%emt 0:00:00]} Nb6 {[%emt 0:03:13]} 22. Rae1 {[%emt 0:00:00]} Bh6 {[%emt 0:01:42]} 23. Re5 {[%emt 0:00:00]} Bxg5 {[%emt 0:02:05]} 24. Bxg5 {[%emt 0:00:00]} Rc7 {[%emt 0:01:16]} 25. cxd5 {[%emt 0:00:00]} Nxd5 {[%emt 0:00:47]} 26. Rc1 {[%emt 0:00:00]} Qd6 {[%emt 0:03:32]} 27. Bf4 {[%emt 0:00:00]} Nxf4+ {[%emt 0:01:54]} 28. gxf4 {[%emt 0:00:00]} Kd7 {[%emt 0:02:23]} 29. Qe3 {[%emt 0:00:00]} Rhc8 {[%emt 0:00:52]} 30. Rc4 {[%emt 0:00:00]} Ke8 {[%emt 0:01:22]} 31. Qe4 {[%emt 0:00:00]} Kf8 {[%emt 0:06:58]} 32. Qe3 {[%emt 0:00:00]} Ke8 {[%emt 0:02:49]} 33. Rce4 {[%emt 0:00:00]} Kd7 {[%emt 0:00:59]} 34. d4 {[%emt 0:00:36]} cxd4 {[%emt 0:01:29]} 35. Rxd4 {[%emt 0:00:12]} Rc2+ {[%emt 0:00:24]} 36. Kf3 {[%emt 0:01:42]} R8c3 {[%emt 0:00:48]} 37. Rxd6+ {[%emt 0:00:19]} Kxd6 {[%emt 0:00:08]} 38. Ra5 {[%emt 0:00:49]} Rxe3+ {[%emt 0:00:32]} 39. Kxe3 {[%emt 0:00:06]} Rc6 {[%emt 0:00:23]} 40. Kd4 {[%emt 0:00:42]} Rb6 {[%emt 0:01:48]} 41. Kc4 {[%emt 0:00:16]} Rc6+ {[%emt 0:00:54]} 42. Kd4 {[%emt 0:00:12]} Rb6 {[%emt 0:00:31]} 43. a3 {[%emt 0:02:31]} Rxb3 {[%emt 0:02:49]} 44. Rxa6+ {[%emt 0:00:06]} Kd7 {[%emt 0:00:07]} 45. Ra7+ {[%emt 0:00:24]} Ke8 {[%emt 0:00:39]} 46. a4 {[%emt 0:00:35]} Rf3 {[%emt 0:01:30]} 47. Ke4 {[%emt 0:00:19]} Rf1 {[%emt 0:00:29]} 48. a5 {[%emt 0:00:25]} Re1+ {[%emt 0:00:07]} 49. Kf3 {[%emt 0:00:04]} Rf1+ {[%emt 0:00:23]} 50. Kg3 {[%emt 0:00:29]} Rg1+ {[%emt 0:01:04]} 51. Kf2 {[%emt 0:00:04]} Ra1 {[%emt 0:00:15]} 52. a6 {[%emt 0:00:04]} Ra2+ {[%emt 0:00:35]} 53. Ke3 {[%emt 0:00:05]} Ra4 {[%emt 0:00:30]} 54. Ra8+ {[%emt 0:00:05]} Kd7 {[%emt 0:00:11]} 55. a7 {[%emt 0:00:07]} Ra3+ {[%emt 0:01:23]} 56. Kd4 {[%emt 0:00:14]} Ra4+ {[%emt 0:00:12]} 57. Kc5 {[%emt 0:00:05]} Ra5+ {[%emt 0:00:13]} 58. Kb6 {[%emt 0:00:09]} Ra1 {[%emt 0:00:00]} 59. Rf8 {[%emt 0:00:00]} Rb1+ {[%emt 0:00:00]} 60. Kc5 {[%emt 0:00:00]} 1-0

[Event "FIDE WCCC Girls-10 2024"]
[Site "Montesilvano"]
[Date "2024.11.18"]
[Round "4.9"]
[White "Yunker, Alisa Genrietta"]
[Black "Malcheva, Niya"]
[Result "1-0"]
[Annotator "NA RC"]
[ECO "D20"]
[WhiteElo "1872"]
[BlackElo "1620"]
[PlyCount "99"]
[EventDate "2024.11.18"]
[EventType "swiss"]
[EventCountry "ITA"]
[SourceTitle "playchess.com"]
[Source "ChessBase"]
[SourceQuality "1"]
[TimeControl "5400+30"]

1. d4 {[%emt 0:00:02]} d5 {[%emt 0:00:04]} 2. c4 {[%emt 0:00:12]} dxc4 {[%emt 0:00:04]} 3. Nc3 {[%emt 0:00:15]} Bd7 {[%emt 0:18:21]} 4. a4 {[%emt 0:04:47]} c6 {[%emt 0:01:05]} 5. a5 {[%emt 0:02:53]} Nf6 {[%emt 0:04:09]} 6. e4 {[%emt 0:03:21]} Be6 {[%emt 0:02:31]} 7. Bg5 {[%emt 0:01:33]} Nbd7 {[%emt 0:00:43]} 8. d5 {[%emt 0:07:12]} cxd5 {[%emt 0:00:15]} 9. exd5 {[%emt 0:00:05]} Bg4 {[%emt 0:00:04]} 10. Qd4 {[%emt 0:07:08]} h6 {[%emt 0:02:05]} 11. Bf4 {[%emt 0:08:29]} e5 {[%emt 0:09:14]} 12. dxe6 {[%emt 0:04:24]} Bxe6 {[%emt 0:02:54]} 13. Bxc4 {[%emt 0:04:57]} Bc5 {[%emt 0:00:41]} 14. Qd3 {[%emt 0:00:07]} Bxc4 {[%emt 0:00:06]} 15. Qxc4 {[%emt 0:00:06]} O-O {[%emt 0:00:05]} 16. Nge2 {[%emt 0:03:21]} Qe7 {[%emt 0:12:50]} 17. O-O {[%emt 0:03:08]} Rac8 {[%emt 0:00:48]} 18. Qd3 {[%emt 0:00:13]} Rfd8 {[%emt 0:02:37]} 19. Qf3 {[%emt 0:00:32]} b6 {[%emt 0:00:47]} 20. Ng3 {[%emt 0:04:39]} Ne5 {[%emt 0:03:00]} 21. Bxe5 {[%emt 0:05:30]} Qxe5 {[%emt 0:00:07]} 22. Rfe1 {[%emt 0:00:07]} Qd4 {[%emt 0:02:30]} 23. Nf5 {[%emt 0:03:06]} Qg4 {[%emt 0:02:45]} 24. Nxh6+ {[%emt 0:06:57]} gxh6 {[%emt 0:00:19]} 25. Qxf6 {[%emt 0:00:15]} Rd6 {[%emt 0:01:56]} 26. Qe5 {[%emt 0:09:42]} Qb4 {[%emt 0:05:48]} 27. Nd5 {[%emt 0:05:28]} Bxf2+ {[%emt 0:01:28]} 28. Kxf2 {[%emt 0:06:05]} Qd2+ {[%emt 0:00:04]} 29. Re2 {[%emt 0:00:08]} Qxd5 {[%emt 0:00:04]} 30. Qxd5 {[%emt 0:00:05]} Rxd5 {[%emt 0:00:26]} 31. axb6 {[%emt 0:00:20]} axb6 {[%emt 0:00:08]} 32. Ra7 {[%emt 0:00:30]} Rd6 {[%emt 0:05:36]} 33. g3 {[%emt 0:00:11]} Rf6+ {[%emt 0:00:33]} 34. Kg2 {[%emt 0:00:01]} Kg7 {[%emt 0:00:31]} 35. Rb7 {[%emt 0:00:15]} Rc4 {[%emt 0:04:38]} 36. Kh3 {[%emt 0:01:23]} Rf5 {[%emt 0:00:39]} 37. Rxb6 {[%emt 0:00:28]} Rc1 {[%emt 0:01:34]} 38. Rb4 {[%emt 0:01:50]} Rb1 {[%emt 0:00:56]} 39. Rg4+ {[%emt 0:00:13]} Kf8 {[%emt 0:00:29]} 40. Rd4 {[%emt 0:01:32]} Rb5 {[%emt 0:00:40]} 41. Rdd2 {[%emt 0:00:06]} Rg1 {[%emt 0:00:40]} 42. Rg2 {[%emt 0:00:27]} Re1 {[%emt 0:00:31]} 43. Rde2 {[%emt 0:00:20]} Rc1 {[%emt 0:00:09]} 44. Rgf2 {[%emt 0:00:09]} Rg1 {[%emt 0:00:34]} 45. Kg4 {[%emt 0:00:07]} Rc1 {[%emt 0:06:28]} 46. Rc2 {[%emt 0:00:24]} Rd1 {[%emt 0:00:09]} 47. Rc8+ {[%emt 0:00:16]} Kg7 {[%emt 0:04:01]} 48. Rc7 {[%emt 0:00:16]} Kg6 {[%emt 0:01:23]} 49. Rcxf7 {[%emt 0:00:52]} Rxb2 {[%emt 0:01:10]} 50. R2f6# {[%emt 0:00:18]} 1-0

[Event "FIDE WCCC Girls-10 2024"]
[Site "Montesilvano"]
[Date "2024.11.18"]
[Round "4.10"]
[White "Rosset, Anna"]
[Black "Pooja Shree R"]
[Result "0-1"]
[Annotator "NA RC"]
[ECO "B22"]
[WhiteElo "1814"]
[BlackElo "1615"]
[PlyCount "160"]
[EventDate "2024.11.18"]
[EventType "swiss"]
[EventCountry "ITA"]
[SourceTitle "playchess.com"]
[Source "ChessBase"]
[SourceQuality "1"]
[TimeControl "5400+30"]

1. e4 {[%emt 0:00:00]} c5 {[%emt 0:00:24]} 2. c3 {[%emt 0:00:14]} Nf6 {[%emt 0:00:13]} 3. e5 {[%emt 0:00:15]} Nd5 {[%emt 0:00:05]} 4. d4 {[%emt 0:00:07]} cxd4 {[%emt 0:01:47]} 5. cxd4 {[%emt 0:00:12]} d6 {[%emt 0:00:07]} 6. Nf3 {[%emt 0:01:00]} Nc6 {[%emt 0:01:32]} 7. Be2 {[%emt 0:02:41]} g6 {[%emt 0:04:08]} 8. O-O {[%emt 0:09:24]} Bg7 {[%emt 0:02:31]} 9. exd6 {[%emt 0:00:56]} Qxd6 {[%emt 0:01:15]} 10. Nc3 {[%emt 0:00:23]} O-O {[%emt 0:06:58]} 11. Ne4 {[%emt 0:09:16]} Qd8 {[%emt 0:16:24]} 12. Be3 {[%emt 0:14:44]} Bf5 {[%emt 0:04:56]} 13. Ng3 {[%emt 0:01:46]} Bg4 {[%emt 0:05:03]} 14. Qd2 {[%emt 0:06:02]} Nf6 {[%emt 0:23:56]} 15. h3 {[%emt 0:03:27]} Be6 {[%emt 0:05:23]} 16. Rfd1 {[%emt 0:06:18]} Bd5 {[%emt 0:02:41]} 17. b3 {[%emt 0:06:55]} a5 {[%emt 0:01:56]} 18. Bh6 {[%emt 0:16:33]} a4 {[%emt 0:02:42]} 19. Bxg7 {[%emt 0:04:57]} Kxg7 {[%emt 0:02:26]} 20. Qe3 {[%emt 0:03:39]} Qb6 {[%emt 0:04:18]} 21. Bc4 {[%emt 0:02:22]} Rad8 {[%emt 0:03:53]} 22. Ne5 {[%emt 0:01:33]} Bxc4 {[%emt 0:03:54]} 23. Nxc4 {[%emt 0:03:39]} Qc7 {[%emt 0:03:01]} 24. Rac1 {[%emt 0:03:57]} axb3 {[%emt 0:01:49]} 25. axb3 {[%emt 0:00:49]} Rd5 {[%emt 0:00:35]} 26. Ne5 {[%emt 0:00:58]} Qd6 {[%emt 0:00:33]} 27. Nc4 {[%emt 0:01:14]} Qc7 {[%emt 0:00:27]} 28. Ne5 {[%emt 0:00:32]} Qd6 {[%emt 0:00:10]} 29. Nc4 {[%emt 0:00:34]} Qd8 {[%emt 0:00:17]} 30. Ne2 {[%emt 0:00:26]} e5 {[%emt 0:00:26]} 31. Qg3 {[%emt 0:01:07]} exd4 {[%emt 0:00:17]} 32. Nf4 {[%emt 0:00:00]} Rd7 {[%emt 0:02:23]} 33. Nd3 {[%emt 0:00:19]} b5 {[%emt 0:00:00]} 34. Na3 {[%emt 0:00:31]} Qb6 {[%emt 0:00:00]} 35. Ne5 {[%emt 0:00:35]} Nxe5 {[%emt 0:00:07]} 36. Qxe5 {[%emt 0:00:04]} Rd5 {[%emt 0:00:09]} 37. Qg3 {[%emt 0:00:52]} Rfd8 {[%emt 0:01:06]} 38. Rd3 {[%emt 0:00:32]} R8d6 {[%emt 0:00:41]} 39. Rcd1 {[%emt 0:00:24]} Qc5 {[%emt 0:00:21]} 40. Nb1 {[%emt 0:00:27]} Ne4 {[%emt 0:00:38]} 41. Qf3 {[%emt 0:00:37]} Re6 {[%emt 0:00:14]} 42. Nd2 {[%emt 0:00:29]} Nc3 {[%emt 0:00:31]} 43. Rf1 {[%emt 0:00:34]} Rf5 {[%emt 0:00:33]} 44. Qg4 {[%emt 0:00:27]} h5 {[%emt 0:00:48]} 45. Qh4 {[%emt 0:00:30]} Ne2+ {[%emt 0:00:09]} 46. Kh1 {[%emt 0:00:29]} Qc2 {[%emt 0:00:16]} 47. Rxd4 {[%emt 0:00:30]} Nxd4 {[%emt 0:00:22]} 48. Qxd4+ {[%emt 0:00:03]} Kh7 {[%emt 0:00:13]} 49. Nf3 {[%emt 0:01:02]} Qxb3 {[%emt 0:00:50]} 50. Qh4 {[%emt 0:00:29]} Rxf3 {[%emt 0:00:25]} 51. gxf3 {[%emt 0:00:18]} Qxf3+ {[%emt 0:00:03]} 52. Kh2 {[%emt 0:00:39]} Re4 {[%emt 0:00:15]} 53. Qg3 {[%emt 0:00:33]} Qxg3+ {[%emt 0:00:18]} 54. Kxg3 {[%emt 0:00:08]} Rb4 {[%emt 0:00:09]} 55. Rd1 {[%emt 0:00:20]} Rb3+ {[%emt 0:00:04]} 56. Kg2 {[%emt 0:00:03]} b4 {[%emt 0:00:05]} 57. Rd7 {[%emt 0:00:06]} Kg7 {[%emt 0:00:05]} 58. Rb7 {[%emt 0:00:10]} Kf6 {[%emt 0:00:11]} 59. Kf1 {[%emt 0:00:45]} Rb2 {[%emt 0:00:10]} 60. Kg2 {[%emt 0:00:55]} Ke6 {[%emt 0:00:30]} 61. Kf1 {[%emt 0:00:26]} b3 {[%emt 0:00:11]} 62. Ke1 {[%emt 0:00:26]} h4 {[%emt 0:01:06]} 63. Rb4 {[%emt 0:00:26]} g5 {[%emt 0:00:04]} 64. Kf1 {[%emt 0:00:25]} f6 {[%emt 0:00:16]} 65. Kg2 {[%emt 0:00:33]} Kd5 {[%emt 0:00:11]} 66. Rb8 {[%emt 0:00:19]} Kc4 {[%emt 0:00:23]} 67. Rc8+ {[%emt 0:00:11]} Kd3 {[%emt 0:00:04]} 68. Kf3 {[%emt 0:01:12]} Rd2 {[%emt 0:00:19]} 69. Rb8 {[%emt 0:00:47]} b2 {[%emt 0:00:02]} 70. Kg2 {[%emt 0:00:46]} Kc2 {[%emt 0:00:10]} 71. Rc8+ {[%emt 0:00:20]} Kd1 {[%emt 0:00:06]} 72. Rb8 {[%emt 0:00:13]} Kc1 {[%emt 0:00:04]} 73. Kf3 {[%emt 0:00:44]} b1=Q {[%emt 0:00:08]} 74. Rxb1+ {[%emt 0:00:04]} Kxb1 {[%emt 0:00:08]} 75. Kg4 {[%emt 0:00:03]} Rxf2 {[%emt 0:00:07]} 76. Kh5 {[%emt 0:00:07]} Rf4 {[%emt 0:00:05]} 77. Kg6 {[%emt 0:00:33]} g4 {[%emt 0:00:09]} 78. hxg4 {[%emt 0:00:36]} h3 {[%emt 0:00:07]} 79. g5 {[%emt 0:00:18]} fxg5 {[%emt 0:00:04]} 80. Kxg5 {[%emt 0:00:05]} Rf1 {[%emt 0:00:05]} 0-1

[Event "FIDE WCCC Girls-10 2024"]
[Site "Montesilvano"]
[Date "2024.11.18"]
[Round "4.11"]
[White "Rzadkowska, Lila"]
[Black "Macakova, Bianka"]
[Result "1/2-1/2"]
[Annotator "NA RC"]
[ECO "A85"]
[WhiteElo "1765"]
[BlackElo "1610"]
[PlyCount "122"]
[EventDate "2024.11.18"]
[EventType "swiss"]
[EventCountry "ITA"]
[SourceTitle "playchess.com"]
[Source "ChessBase"]
[SourceQuality "1"]
[TimeControl "5400+30"]

1. d4 {[%emt 0:00:03]} f5 {[%emt 0:00:08]} 2. Nf3 {[%emt 0:00:47]} Nf6 {[%emt 0:01:08]} 3. c4 {[%emt 0:00:42]} g6 {[%emt 0:01:20]} 4. Nc3 {[%emt 0:01:05]} Bg7 {[%emt 0:01:49]} 5. Bf4 {[%emt 0:01:58]} O-O {[%emt 0:07:34]} 6. e3 {[%emt 0:01:10]} d6 {[%emt 0:02:03]} 7. h3 {[%emt 0:01:37]} c6 {[%emt 0:08:24]} 8. Rc1 {[%emt 0:01:04]} Qe8 {[%emt 0:04:23]} 9. Be2 {[%emt 0:02:56]} Nbd7 {[%emt 0:11:34]} 10. d5 {[%emt 0:02:16]} Nc5 {[%emt 0:09:52]} 11. O-O {[%emt 0:08:17]} Nfe4 {[%emt 0:12:44]} 12. Nxe4 {[%emt 0:05:17]} Nxe4 {[%emt 0:05:31]} 13. Qb3 {[%emt 0:05:31]} h6 {[%emt 0:06:34]} 14. c5 {[%emt 0:10:43]} g5 {[%emt 0:08:19]} 15. dxc6+ {[%emt 0:02:32]} Kh8 {[%emt 0:09:17]} 16. cxd6 {[%emt 0:01:35]} bxc6 {[%emt 0:01:43]} 17. Be5 {[%emt 0:02:28]} g4 {[%emt 0:05:49]} 18. Bxg7+ {[%emt 0:02:57]} Kxg7 {[%emt 0:00:40]} 19. dxe7 {[%emt 0:00:58]} Qxe7 {[%emt 0:00:23]} 20. hxg4 {[%emt 0:00:33]} fxg4 {[%emt 0:00:19]} 21. Nd2 {[%emt 0:00:25]} Nxd2 {[%emt 0:00:38]} 22. Qc3+ {[%emt 0:00:08]} Kg8 {[%emt 0:00:40]} 23. Qxd2 {[%emt 0:00:32]} Bd7 {[%emt 0:00:33]} 24. Qd4 {[%emt 0:01:54]} h5 {[%emt 0:00:30]} 25. Bc4+ {[%emt 0:00:44]} Kh7 {[%emt 0:00:32]} 26. Bd3+ {[%emt 0:00:48]} Bf5 {[%emt 0:00:26]} 27. Rxc6 {[%emt 0:01:12]} Rf7 {[%emt 0:00:31]} 28. Bxf5+ {[%emt 0:00:36]} Rxf5 {[%emt 0:00:18]} 29. Qd6 {[%emt 0:00:22]} Qxd6 {[%emt 0:00:34]} 30. Rxd6 {[%emt 0:00:03]} Raf8 {[%emt 0:00:35]} 31. Ra6 {[%emt 0:00:33]} R8f7 {[%emt 0:00:14]} 32. a4 {[%emt 0:00:55]} g3 {[%emt 0:00:17]} 33. f3 {[%emt 0:00:11]} Re5 {[%emt 0:00:59]} 34. e4 {[%emt 0:00:14]} Rb7 {[%emt 0:00:16]} 35. Rb1 {[%emt 0:00:50]} Rc5 {[%emt 0:00:34]} 36. Kf1 {[%emt 0:00:13]} Rc2 {[%emt 0:00:20]} 37. b4 {[%emt 0:00:38]} Rd7 {[%emt 0:00:38]} 38. Ra5 {[%emt 0:03:07]} Rdd2 {[%emt 0:00:43]} 39. Rxh5+ {[%emt 0:00:21]} Kg6 {[%emt 0:00:25]} 40. Rh4 {[%emt 0:01:13]} Rf2+ {[%emt 0:00:30]} 41. Kg1 {[%emt 0:00:14]} Rxg2+ {[%emt 0:00:33]} 42. Kh1 {[%emt 0:00:15]} Kg5 {[%emt 0:00:35]} 43. Rh7 {[%emt 0:01:25]} Kf4 {[%emt 0:00:28]} 44. a5 {[%emt 0:03:13]} Kxf3 {[%emt 0:00:31]} 45. e5 {[%emt 0:00:50]} Rh2+ {[%emt 0:00:32]} 46. Rxh2 {[%emt 0:00:11]} Rxh2+ {[%emt 0:00:06]} 47. Kg1 {[%emt 0:00:11]} Rg2+ {[%emt 0:00:19]} 48. Kf1 {[%emt 0:00:47]} Rf2+ {[%emt 0:00:32]} 49. Ke1 {[%emt 0:00:16]} Rh2 {[%emt 0:00:58]} 50. Rb3+ {[%emt 0:00:25]} Kf4 {[%emt 0:00:37]} 51. Kf1 {[%emt 0:01:15]} Rh1+ {[%emt 0:00:26]} 52. Kg2 {[%emt 0:00:13]} Rh2+ {[%emt 0:00:16]} 53. Kg1 {[%emt 0:00:06]} Kxe5 {[%emt 0:00:24]} 54. b5 {[%emt 0:02:18]} Ra2 {[%emt 0:00:47]} 55. b6 {[%emt 0:01:09]} axb6 {[%emt 0:00:32]} 56. Rb5+ {[%emt 0:01:39]} Kd6 {[%emt 0:00:27]} 57. axb6 {[%emt 0:00:46]} Ra8 {[%emt 0:00:33]} 58. Kg2 {[%emt 0:01:02]} Rb8 {[%emt 0:00:32]} 59. Kxg3 {[%emt 0:00:18]} Kc6 {[%emt 0:00:17]} 60. Rb1 {[%emt 0:00:11]} Rxb6 {[%emt 0:00:19]} 61. Rxb6+ {[%emt 0:00:05]} Kd5 {[%emt 0:01:29]} 1/2-1/2

[Event "FIDE WCCC Girls-10 2024"]
[Site "Montesilvano"]
[Date "2024.11.18"]
[Round "4.12"]
[White "Rekhviashvili, Mariam"]
[Black "Samhita Pungavanam"]
[Result "0-1"]
[Annotator "NA RC"]
[ECO "B15"]
[WhiteElo "1610"]
[BlackElo "1752"]
[PlyCount "46"]
[EventDate "2024.11.18"]
[EventType "swiss"]
[EventCountry "ITA"]
[SourceTitle "playchess.com"]
[Source "ChessBase"]
[SourceQuality "1"]
[TimeControl "5400+30"]

1. e4 {[%emt 0:00:02]} c6 {[%emt 0:00:32]} 2. d4 {[%emt 0:00:07]} d5 {[%emt 0:01:23]} 3. Nc3 {[%emt 0:01:32]} dxe4 {[%emt 0:00:47]} 4. Nxe4 {[%emt 0:00:38]} Nf6 {[%emt 0:01:52]} 5. Nxf6+ {[%emt 0:01:09]} exf6 {[%emt 0:00:13]} 6. c3 {[%emt 0:01:25]} Bd6 {[%emt 0:01:58]} 7. Bd3 {[%emt 0:01:09]} O-O {[%emt 0:01:25]} 8. Qc2 {[%emt 0:00:32]} Re8+ {[%emt 0:00:30]} 9. Ne2 {[%emt 0:00:09]} h5 {[%emt 0:00:41]} 10. O-O {[%emt 0:00:31]} h4 {[%emt 0:01:40]} 11. h3 {[%emt 0:00:21]} Nd7 {[%emt 0:01:00]} 12. Be3 {[%emt 0:00:13]} Nf8 {[%emt 0:01:32]} 13. Rad1 {[%emt 0:00:41]} Be6 {[%emt 0:01:33]} 14. Rfe1 {[%emt 0:04:18]} Rc8 {[%emt 0:01:58]} 15. Bf4 {[%emt 0:12:42]} Bxf4 {[%emt 0:10:58]} 16. Nxf4 {[%emt 0:00:31]} Qd6 {[%emt 0:03:10]} 17. Nxe6 {[%emt 0:18:32]} Nxe6 {[%emt 0:07:19]} 18. Bf5 {[%emt 0:15:55]} Rcd8 {[%emt 0:06:14]} 19. Qb3 {[%emt 0:13:56]} Nf4 {[%emt 0:07:12]} 20. Qxb7 {[%emt 0:11:20]} Qd5 {[%emt 0:48:33]} 21. Be4 {[%emt 0:05:22]} Rxe4 {[%emt 0:00:00]} 22. Rxe4 {[%emt 0:02:50]} Qxe4 {[%emt 0:00:00]} 23. Kf1 {[%emt 0:02:01]} Re8 {[%emt 0:00:00]} 0-1